bitfinex/quotes_SOLUSD_20250129
["timestamp","ask_amount","ask_price","bid_price","bid_amount"]
[1738161518952,0.37647,226.73,226.6,4.413]
[1738161518953,33.40839155,226.66,226.6,4.413]
[1738161519175,33.40839155,226.66,226.58,33.57839155]
[1738161519377,33.40839155,226.66,226.58,37.99169155]
[1738161519878,33.40839155,226.63,226.58,0.17]
[1738161520180,33.40839155,226.65,226.59,0.03]
[1738161520677,33.40839155,226.61,226.59,0.03]
[1738161521182,33.40839155,226.63,226.59,0.03]
[1738161521774,35.17339155,226.63,226.59,0.03]
[1738161522165,33.40839155,226.63,226.59,0.03]
[1738161522365,33.40839155,226.61,226.59,0.03]
[1738161523065,33.65937155,226.6,226.59,0.03]
[1738161523274,33.78486155,226.6,226.59,0.03]
[1738161523982,35.55006155,226.6,226.59,0.03]
[1738161524489,35.67555155,226.6,226.59,0.03]
[1738161524802,69.0839431,226.6,226.59,0.03]
[1738161524977,70.0839431,226.6,226.59,0.03]
[1738161525294,35.67555155,226.6,226.59,0.03]
[1738161525461,35.55006155,226.6,226.59,0.03]
[1738161526278,35.42457155,226.6,226.59,0.03]
[1738161526691,33.53388155,226.6,226.59,0.03]
[1738161526861,33.40839155,226.62,226.59,0.03]
[1738161527065,33.40839155,226.6,226.59,0.03]
[1738161527264,33.91035155,226.6,226.59,0.03]
[1738161527663,33.65937155,226.6,226.59,0.03]
[1738161528066,35.42457155,226.6,226.59,0.03]
[1738161528472,33.40839155,226.6,226.59,0.03]
[1738161529381,35.17359155,226.6,226.59,0.03]
[1738161529576,33.40839155,226.6,226.59,0.03]
[1738161530170,35.42457155,226.6,226.59,0.03]
[1738161530501,35.67555155,226.6,226.59,0.03]
[1738161530668,69.0839431,226.6,226.59,0.03]
[1738161530992,35.67555155,226.6,226.59,0.03]
[1738161531368,35.55006155,226.6,226.59,0.03]
[1738161531663,35.42457155,226.6,226.59,0.03]
[1738161532404,33.40839155,226.6,226.59,0.03]
[1738161532580,33.40839155,226.63,226.59,0.03]
[1738161532898,0.12549,226.62,226.59,0.03]
[1738161533190,33.53388155,226.6,226.59,0.03]
[1738161534689,20.70290547,226.6,226.59,0.03]
[1738161534891,22.59359547,226.6,226.59,0.03]
[1738161535086,22.84457547,226.6,226.59,0.03]
[1738161537192,22.59359547,226.6,226.59,0.03]
[1738161537774,0.12549,226.6,226.59,0.03]
[1738161537972,20.57741547,226.62,226.59,0.03]
[1738161538173,1.89039,226.64,226.59,0.03]
[1738161538390,20.57741547,226.66,226.59,25.02061547]
[1738161539109,20.82839547,226.67,226.59,4.4432]
[1738161539275,1.89009,226.68,226.59,0.03]
[1738161539276,20.82839547,226.61,226.59,0.03]
[1738161539998,0.25098,226.61,226.59,0.03]
[1738161540577,20.57741547,226.63,226.59,0.03]
[1738161540890,20.57741547,226.65,226.59,0.03]
[1738161541200,20.70290547,226.67,226.59,20.60741547]
[1738161541992,0.12549,226.66,226.59,20.60741547]
[1738161542296,20.57741547,226.66,226.59,0.03]
[1738161542471,1.7645,226.69,226.59,0.03]
[1738161542472,20.57741547,226.7,226.62,20.57741547]
[1738161542671,21.57741547,226.74,226.65,20.57741547]
[1738161542901,21.07937547,226.73,226.65,20.57741547]
[1738161543284,20.57741547,226.75,226.67,20.57741547]
[1738161543486,1.7637,226.79,226.71,20.57741547]
[1738161543797,20.57741547,226.82,226.73,20.57741547]
[1738161543994,20.57741547,226.82,226.75,20.57741547]
[1738161544589,33.37035502,226.83,226.75,37.78025502]
[1738161544915,0.25098,226.82,226.75,37.78025502]
[1738161545212,33.62133502,226.76,226.69,4.4112]
[1738161545377,0.12549,226.71,226.66,6.2959]
[1738161545579,33.37035502,226.7,226.66,6.2959]
[1738161545978,0.25098,226.69,226.62,37.78285502]
[1738161546179,33.37035502,226.68,226.6,37.78325502]
[1738161546801,33.37035502,226.72,226.64,33.37035502]
[1738161547190,0.25098,226.71,226.64,33.37035502]
[1738161547387,33.37035502,226.68,226.6,33.37035502]
[1738161547721,33.62133502,226.67,226.59,37.81355502]
[1738161548293,0.12549,226.66,226.59,33.40035502]
[1738161548708,0.25098,226.64,226.59,0.03]
[1738161548886,33.37035502,226.63,226.59,0.03]
[1738161549080,33.37035502,226.64,226.59,0.03]
[1738161550283,0.25098,226.63,226.59,0.03]
[1738161550501,33.37035502,226.62,226.59,0.03]
[1738161551001,0.25098,226.63,226.59,0.03]
[1738161551200,0.12549,226.62,226.59,0.03]
[1738161551402,0.12549,226.6,226.59,0.03]
[1738161551991,0.50196,226.6,226.59,0.03]
[1738161552710,2.26716,226.6,226.59,0.03]
[1738161553408,35.63751502,226.6,226.59,0.03]
[1738161554522,59.41439902,226.6,226.59,0.03]
[1738161555308,35.63751502,226.6,226.59,0.03]
[1738161555699,33.37035502,226.65,226.59,0.03]
[1738161555902,0.12549,226.6,226.59,0.03]
[1738161556106,33.87231502,226.6,226.59,0.03]
[1738161556892,35.63751502,226.6,226.59,0.03]
[1738161558310,33.37035502,226.63,226.59,0.03]
[1738161558692,0.12549,226.62,226.59,0.03]
[1738161559114,33.37035502,226.65,226.59,0.03]
[1738161559493,33.37035502,226.62,226.59,0.03]
[1738161560003,0.12549,226.63,226.59,0.03]
[1738161560413,33.37035502,226.66,226.59,0.03]
[1738161560603,33.37035502,226.67,226.6,33.37035502]
[1738161561310,35.26034502,226.69,226.62,33.37035502]
[1738161561658,0.37647,226.67,226.6,39.80665502]
[1738161561800,33.37035502,226.65,226.6,6.4363]
[1738161562921,35.13525502,226.65,226.6,6.4363]
[1738161563099,35.13525502,226.65,226.59,0.03]
[1738161563302,33.37035502,226.61,226.59,0.03]
[1738161563505,0.12549,226.6,226.59,0.03]
[1738161563819,0.50196,226.6,226.59,0.03]
[1738161563995,33.87231502,226.6,226.59,0.03]
[1738161564630,21.08135079,226.6,226.59,0.03]
[1738161565016,22.84655079,226.6,226.59,0.03]
[1738161566022,68.20282558,226.6,226.59,0.03]
[1738161566247,69.20282558,226.6,226.59,0.0001]
[1738161566447,47.62343479,226.6,226.59,0.0001]
[1738161566611,46.62343479,226.6,226.59,0.0001]
[1738161566812,47.62343479,226.6,226.59,0.0001]
[1738161567414,68.20282558,226.6,226.59,0.0001]
[1738161568741,47.62343479,226.6,226.59,0.0001]
[1738161570320,68.20282558,226.6,226.59,0.0001]
[1738161570638,67.20282558,226.6,226.59,0.0001]
[1738161570953,47.62343479,226.6,226.59,0.0001]
[1738161571316,23.84655079,226.6,226.59,0.0001]
[1738161572348,20.57939079,226.61,226.59,0.0001]
[1738161572657,0.12549,226.6,226.59,0.0001]
[1738161572819,20.70488079,226.6,226.59,0.0001]
[1738161573028,0.12549,226.6,226.59,0.0001]
[1738161573266,20.70488079,226.6,226.59,0.0001]
[1738161573625,20.57939079,226.62,226.59,0.0001]
[1738161573946,20.57939079,226.64,226.59,0.0001]
[1738161575128,20.57939079,226.66,226.59,0.0001]
[1738161575328,20.57939079,226.68,226.6,20.57939079]
[1738161575548,20.57939079,226.7,226.62,20.57939079]
[1738161575866,82.62549,226.74,226.66,20.57939079]
[1738161575867,20.57939079,226.74,226.66,20.57939079]
[1738161576048,20.57939079,226.76,226.68,20.57939079]
[1738161576371,20.57939079,226.76,226.7,20.57939079]
[1738161576545,20.57939079,226.76,226.69,6.1613]
[1738161576953,20.57939079,226.78,226.7,20.57939079]
[1738161577334,20.57939079,226.78,226.7,24.99039079]
[1738161578059,20.57939079,226.78,226.72,20.57939079]
[1738161578235,20.57939079,226.78,226.7,4.411]
[1738161578236,20.57939079,226.82,226.74,20.57939079]
[1738161578435,20.57939079,226.84,226.76,20.57939079]
[1738161578655,0.12549,226.81,226.74,20.57939079]
[1738161578855,20.57939079,226.75,226.69,6.1613]
[1738161579170,20.70488079,226.7,226.62,6.1746]
[1738161579457,1.0,226.79,226.63,20.57939079]
[1738161579458,22.34379079,226.71,226.63,20.57939079]
[1738161579626,20.57939079,226.71,226.63,20.57939079]
[1738161581096,22.34379079,226.71,226.63,20.57939079]
[1738161581463,22.34379079,226.71,226.63,24.99179079]
[1738161581464,20.57939079,226.71,226.63,24.99179079]
[1738161581687,20.57939079,226.75,226.67,20.57939079]
[1738161581988,20.57939079,226.71,226.65,20.57939079]
[1738161582363,0.12549,226.72,226.65,20.57939079]
[1738161583179,22.34339079,226.75,226.67,20.57939079]
[1738161584678,22.34339079,226.75,226.67,24.99099079]
[1738161584679,0.063,226.71,226.67,24.99099079]
[1738161585071,0.063,226.71,226.69,20.57939079]
[1738161585574,0.063,226.71,226.69,23.99939079]
[1738161585971,0.063,226.71,226.69,3.42]
[1738161586172,0.063,226.71,226.69,23.99939079]
[1738161586478,0.063,226.71,226.7,4.4111]
[1738161587399,20.57939079,226.83,226.71,1.5641]
[1738161587590,20.57939079,226.87,226.79,20.57939079]
[1738161588459,20.57939079,226.87,226.79,24.98859079]
[1738161588661,1.763,226.88,226.81,20.57939079]
[1738161588869,22.53078079,226.89,226.81,20.57939079]
[1738161589075,0.12549,226.84,226.77,20.57939079]
[1738161589381,0.12549,226.84,226.75,20.57939079]
[1738161589382,20.57939079,226.81,226.75,20.57939079]
[1738161589778,20.57939079,226.81,226.74,3.42]
[1738161590563,22.34299079,226.81,226.74,3.42]
[1738161591779,1.7636,226.81,226.75,20.57939079]
[1738161592781,20.57939079,226.83,226.75,20.57939079]
[1738161592965,1.7635,226.82,226.75,20.57939079]
[1738161593166,20.57939079,226.81,226.74,3.42]
[1738161593373,20.57939079,226.79,226.72,6.0403]
[1738161594187,20.57939079,226.81,226.73,20.57939079]
[1738161594880,20.57939079,226.81,226.72,10.451]
[1738161594881,1.7635,226.82,226.75,20.57939079]
[1738161595075,1.7635,226.82,226.75,24.98939079]
[1738161595585,0.12549,226.81,226.75,20.57939079]
[1738161595987,20.83037079,226.81,226.73,20.57939079]
[1738161596776,0.25098,226.79,226.73,20.57939079]
[1738161597075,0.25098,226.79,226.72,6.0403]
[1738161597076,20.83037079,226.77,226.69,20.57939079]
[1738161597269,20.57939079,226.81,226.73,20.57939079]
[1738161597605,1.7636,226.81,226.75,20.57939079]
[1738161598082,0.12549,226.8,226.75,20.57939079]
[1738161598678,20.57939079,226.83,226.75,20.57939079]
[1738161598881,1.7635,226.82,226.77,20.57939079]
[1738161599070,0.25098,226.84,226.77,20.57939079]
[1738161599071,1.7633,226.84,226.77,20.57939079]
[1738161599266,4.471,226.87,226.81,20.57939079]
[1738161599267,0.063,226.87,226.81,20.57939079]
[1738161599463,0.063,226.87,226.83,20.57939079]
[1738161599988,22.40549079,226.87,226.8,3.4]
[1738161600595,20.57939079,226.85,226.8,3.4]
[1738161601005,0.063,226.87,226.82,20.57939079]
[1738161601730,22.53098079,226.87,226.8,23.97939079]
[1738161601904,20.70488079,226.85,226.78,20.57939079]
[1738161602096,20.57939079,226.83,226.76,6.1667]
[1738161602297,20.57939079,226.83,226.76,10.5766]
[1738161602476,20.57939079,226.85,226.77,20.57939079]
[1738161602671,0.12549,226.86,226.79,20.57939079]
[1738161602878,1.88869,226.86,226.79,20.57939079]
[1738161603313,0.25098,226.81,226.75,20.57939079]
[1738161603513,0.12549,226.78,226.71,22.22479079]
[1738161603703,0.12549,226.78,226.71,20.60939079]
[1738161604288,0.12549,226.81,226.73,20.57939079]
[1738161604289,20.70488079,226.81,226.73,20.57939079]
[1738161604493,0.25098,226.82,226.75,20.57939079]
[1738161604717,22.34269079,226.85,226.77,24.98909079]
[1738161604896,22.40549079,226.87,226.79,20.57939079]
[1738161605424,0.12549,226.86,226.79,20.57939079]
[1738161606000,0.12549,226.86,226.77,24.98909079]
[1738161606426,20.64239079,226.87,226.79,20.57939079]
[1738161606769,0.063,226.87,226.81,20.57939079]
[1738161607091,20.64239079,226.87,226.79,20.57939079]
[1738161608309,20.64239079,226.87,226.8,4.4091]
[1738161609328,20.64239079,226.87,226.81,20.57939079]
[1738161609329,0.063,226.87,226.81,20.57939079]
[1738161609737,0.063,226.87,226.83,20.57939079]
[1738161610407,0.063,226.87,226.83,24.98789079]
[1738161610622,0.063,226.87,226.83,20.57939079]
[1738161611040,0.063,226.87,226.83,24.98789079]
[1738161611221,0.063,226.87,226.83,20.57939079]
[1738161611425,0.063,226.87,226.8,3.38]
[1738161611641,0.063,226.87,226.83,20.57939079]
[1738161611934,0.063,226.87,226.85,20.57939079]
[1738161612544,0.063,226.87,226.86,4.408]
[1738161614441,0.063,226.87,226.85,20.57939079]
[1738161614828,0.063,226.87,226.85,24.98749079]
[1738161615025,0.063,226.87,226.85,336.98749079]
[1738161615225,0.063,226.92,226.9,31.0]
[1738161615433,1.7616,227.07,226.91,41.56886371]
[1738161615627,20.64239079,227.1,227.03,20.57939079]
[1738161615963,0.063,227.1,227.04,20.57939079]
[1738161616123,0.063,227.1,227.08,20.57939079]
[1738161616314,0.063,227.1,226.99,31.0]
[1738161616623,0.063,227.1,227.09,20.57939079]
[1738161618135,0.063,227.1,227.08,20.57939079]
[1738161618323,0.063,227.1,227.06,20.57939079]
[1738161618528,0.063,227.1,227.07,20.57939079]
[1738161618825,0.063,227.1,227.08,20.57939079]
[1738161619025,0.063,227.1,227.09,20.57939079]
[1738161620650,0.063,227.1,227.09,24.98289079]
[1738161621789,0.063,227.1,227.09,31.36859079]
[1738161621938,0.063,227.1,227.09,343.36859079]
[1738161622327,0.0001,227.1,227.09,367.14547479]
[1738161622533,0.063,227.12,227.11,50.0]
[1738161622736,0.0001,227.12,227.11,115.34531837]
[1738161622947,0.0001,227.15,227.14,30.0]
[1738161623149,0.0001,227.15,227.14,71.5683834]
[1738161623528,0.0001,227.15,227.14,96.8844674]
[1738161623756,20.57939079,227.31,227.14,97.47486558]
[1738161623936,0.063,227.33,227.29,20.57939079]
[1738161624331,0.063,227.33,227.31,20.57939079]
[1738161624745,0.063,227.33,227.31,24.97849079]
[1738161625055,0.063,227.33,227.32,0.40934505]
[1738161625359,0.063,227.33,227.31,24.97849079]
[1738161625558,0.063,227.33,227.31,20.57939079]
[1738161625759,20.57939079,227.46,227.32,50.98878061]
[1738161625937,22.33769079,227.49,227.41,20.57939079]
[1738161627058,20.64239079,227.51,227.43,20.57939079]
[1738161627241,0.063,227.51,227.45,20.57939079]
[1738161627562,0.37647,227.46,227.37,20.57939079]
[1738161627871,20.57939079,227.43,227.36,3.38]
[1738161628068,20.57939079,227.43,227.35,20.57939079]
[1738161628241,20.57939079,227.41,227.33,20.57939079]
[1738161628442,20.57939079,227.39,227.31,20.57939079]
[1738161628641,1.7593,227.36,227.29,20.57939079]
[1738161629243,20.57939079,227.35,227.27,20.57939079]
[1738161629950,20.57939079,227.31,227.23,20.57939079]
[1738161630458,20.57939079,227.35,227.27,20.57939079]
[1738161631038,20.57939079,227.35,227.29,20.57939079]
[1738161631259,20.57939079,227.33,227.25,20.57939079]
[1738161631842,20.57939079,227.34,227.27,20.57939079]
[1738161632235,20.57939079,227.32,227.25,20.57939079]
[1738161632459,21.7594,227.35,227.28,20.57939079]
[1738161632641,1.7594,227.35,227.28,20.57939079]
[1738161632848,0.37647,227.4,227.3,20.57939079]
[1738161632849,1.7593,227.37,227.3,20.57939079]
[1738161633054,1.7597,227.3,227.23,20.57939079]
[1738161634143,0.25098,227.28,227.23,20.57939079]
[1738161634345,20.57939079,227.27,227.18,20.57939079]
[1738161634550,20.57939079,227.29,227.22,20.57939079]
[1738161634866,20.57939079,227.34,227.27,20.57939079]
[1738161635166,22.33869079,227.36,227.29,20.57939079]
[1738161635362,0.12549,227.34,227.27,20.57939079]
[1738161635573,20.57939079,227.28,227.21,20.57939079]
[1738161635749,20.57939079,227.27,227.2,20.57939079]
[1738161636240,20.57939079,227.27,227.1,1.6265]
[1738161636241,0.12549,227.24,227.16,20.57939079]
[1738161636440,20.57939079,227.21,227.14,20.57939079]
[1738161637467,22.33989079,227.21,227.14,20.57939079]
[1738161637758,20.12549,227.26,227.2,20.57939079]
[1738161637962,8.2924,227.29,227.22,20.57939079]
[1738161638153,22.33909079,227.31,227.24,20.57939079]
[1738161638354,0.03,227.3,227.24,20.57939079]
[1738161638550,0.03,227.3,227.26,20.57939079]
[1738161638748,0.15549,227.3,227.25,20.57939079]
[1738161638963,20.03,227.3,227.25,20.57939079]
[1738161639360,20.03,227.3,227.27,20.57939079]
[1738161639548,0.03,227.3,227.25,20.57939079]
[1738161639744,0.03,227.3,227.23,20.57939079]
[1738161639969,0.03,227.3,227.29,20.57939079]
[1738161640472,0.03,227.3,227.25,20.57939079]
[1738161640660,0.03,227.3,227.27,20.57939079]
[1738161640857,0.03,227.3,227.25,20.57939079]
[1738161641656,0.03,227.3,227.27,20.57939079]
[1738161641868,0.03,227.3,227.29,20.57939079]
[1738161642178,0.03,227.3,227.27,20.57939079]
[1738161642887,0.03,227.3,227.29,20.57939079]
[1738161643182,0.03,227.3,227.27,20.57939079]
[1738161643483,0.03,227.3,227.25,20.57939079]
[1738161643647,40.60939079,227.3,227.23,20.57939079]
[1738161643845,0.03,227.3,227.27,20.57939079]
[1738161644083,0.03,227.3,227.29,20.57939079]
[1738161644383,0.03,227.3,227.27,20.57939079]
[1738161644565,0.03,227.3,227.25,20.57939079]
[1738161645261,0.03,227.3,227.29,20.57939079]
[1738161645859,0.03,227.3,227.29,24.97899079]
[1738161646354,20.57939079,227.44,227.31,30.0]
[1738161646559,28.75079079,227.46,227.38,20.57939079]
[1738161646754,0.12549,227.42,227.38,20.57939079]
[1738161646961,0.25098,227.42,227.36,20.57939079]
[1738161647167,0.25098,227.45,227.38,20.57939079]
[1738161647367,26.99219079,227.46,227.38,20.57939079]
[1738161647558,22.33769079,227.49,227.41,20.57939079]
[1738161647761,0.25098,227.45,227.39,20.57939079]
[1738161647961,0.12549,227.43,227.39,20.57939079]
[1738161648162,20.0,227.42,227.37,20.57939079]
[1738161648377,0.25098,227.4,227.33,20.57939079]
[1738161648672,0.25098,227.4,227.26,22.15899079]
[1738161648673,0.12549,227.37,227.31,20.57939079]
[1738161649170,0.25098,227.35,227.28,20.57939079]
[1738161649482,20.57939079,227.36,227.28,20.57939079]
[1738161649700,20.57939079,227.3,227.22,20.57939079]
[1738161649969,0.25098,227.31,227.2,20.57939079]
[1738161649970,20.57939079,227.28,227.2,20.57939079]
[1738161650156,20.57939079,227.28,227.23,0.063]
[1738161650361,20.57939079,227.32,227.24,20.57939079]
[1738161650573,22.13119079,227.41,227.31,20.57939079]
[1738161650776,22.13119079,227.41,227.32,20.57939079]
[1738161650777,28.35509079,227.4,227.32,20.57939079]
[1738161650962,20.0,227.37,227.32,20.57939079]
[1738161651351,20.70488079,227.36,227.23,0.47242799]
[1738161651678,20.0,227.37,227.32,20.57939079]
[1738161651977,0.25098,227.36,227.3,20.57939079]
[1738161652350,20.0,227.37,227.3,20.57939079]
[1738161652558,21.7592,227.37,227.32,20.57939079]
[1738161652965,2.01008,227.39,227.32,20.57939079]
[1738161653370,22.33809079,227.44,227.36,20.57939079]
[1738161653958,0.12549,227.43,227.36,20.57939079]
[1738161654761,20.57939079,227.42,227.34,20.57939079]
[1738161655274,0.25098,227.43,227.36,20.57939079]
[1738161655462,2.00978,227.43,227.36,20.57939079]
[1738161655860,0.25098,227.41,227.34,20.57939079]
[1738161656058,20.57939079,227.38,227.3,20.57939079]
[1738161657191,0.25098,227.37,227.3,20.57939079]
[1738161657498,1.7595,227.33,227.26,20.57939079]
[1738161658078,20.95586079,227.32,227.24,20.57939079]
[1738161658401,20.57939079,227.28,227.23,0.063]
[1738161658684,0.25098,227.29,227.23,0.063]
[1738161658898,0.12549,227.29,227.23,0.063]
[1738161659279,20.57939079,227.3,227.23,0.063]
[1738161659589,1.7598,227.29,227.23,0.063]
[1738161660094,1.7598,227.29,227.24,20.57939079]
[1738161660295,1.7596,227.33,227.26,20.57939079]
[1738161660506,82.5,227.36,227.3,20.57939079]
[1738161661170,0.12549,227.41,227.34,20.57939079]
[1738161661387,1.7588,227.43,227.36,20.57939079]
[1738161662103,20.57939079,227.42,227.34,20.57939079]
[1738161662470,0.25098,227.41,227.34,20.57939079]
[1738161662675,0.25098,227.41,227.31,3.34]
[1738161662676,20.0,227.41,227.35,33.20503274]
[1738161662883,34.96383274,227.43,227.35,33.20503274]
[1738161663568,54.96393274,227.41,227.33,33.20503274]
[1738161664171,20.0,227.41,227.35,33.20503274]
[1738161664371,34.96383274,227.43,227.35,33.20503274]
[1738161664594,33.20503274,227.41,227.31,3.34]
[1738161664780,33.20503274,227.39,227.32,33.20503274]
[1738161664981,33.20503274,227.39,227.25,30.0]
[1738161664982,33.20503274,227.37,227.3,33.20503274]
[1738161665508,33.20503274,227.36,227.28,33.20503274]
[1738161665674,1.7593,227.36,227.29,33.20503274]
[1738161665876,82.5,227.37,227.31,33.20503274]
[1738161666108,82.5,227.37,227.33,33.20503274]
[1738161666313,82.5,227.37,227.35,33.20503274]
[1738161666608,82.5,227.37,227.32,33.20503274]
[1738161666780,84.2592,227.37,227.3,33.20503274]
[1738161666984,82.5,227.37,227.33,33.20503274]
[1738161667185,82.5,227.37,227.36,33.20503274]
[1738161668176,82.5,227.37,227.34,33.20503274]
[1738161668380,82.5,227.37,227.31,33.20503274]
[1738161668381,84.2592,227.37,227.31,33.20503274]
[1738161668987,82.5,227.37,227.33,33.20503274]
[1738161669312,82.5,227.37,227.35,33.20503274]
[1738161669887,82.5,227.37,227.36,33.20503274]
[1738161672202,82.5,227.37,227.32,33.20503274]
[1738161672521,84.2592,227.37,227.3,33.20503274]
[1738161672711,33.45601274,227.36,227.28,33.20503274]
[1738161672901,33.20503274,227.36,227.26,7.7202]
[1738161673095,33.20503274,227.36,227.3,33.20503274]
[1738161673419,33.20503274,227.36,227.3,33.26803274]
[1738161673621,84.2592,227.37,227.3,33.26803274]
[1738161673789,82.5,227.37,227.33,33.20503274]
[1738161673997,82.5,227.37,227.36,33.20503274]
[1738161674341,0.03,227.43,227.36,33.20503274]
[1738161674342,0.03,227.43,227.37,23.776884]
[1738161674499,0.03,227.43,227.42,33.20503274]
[1738161674706,0.03,227.43,227.41,33.20503274]
[1738161675223,34.99373274,227.43,227.36,33.20503274]
[1738161675728,84.2887,227.43,227.37,33.20503274]
[1738161675889,82.53,227.43,227.39,33.20503274]
[1738161676210,82.53,227.43,227.38,33.20503274]
[1738161676423,84.2888,227.43,227.36,33.20503274]
[1738161676585,82.53,227.43,227.37,33.20503274]
[1738161676784,82.53,227.43,227.4,33.20503274]
[1738161677310,0.03,227.43,227.42,33.20503274]
[1738161678519,0.03,227.43,227.42,37.60213274]
[1738161679011,0.03,227.43,227.42,61.37901674]
[1738161679214,0.0001,227.43,227.42,91.88097674]
[1738161679621,0.0001,227.43,227.42,91.62999674]
[1738161679801,0.0001,227.43,227.42,61.37901674]
[1738161679989,0.0001,227.43,227.42,61.78808726]
[1738161680295,0.0001,227.43,227.42,92.03906726]
[1738161680495,0.0001,227.43,227.42,91.62999674]
[1738161681015,0.0001,227.43,227.42,91.88097674]
[1738161681612,0.0001,227.43,227.42,61.62999674]
[1738161682117,0.0001,227.43,227.42,91.88097674]
[1738161682510,0.0001,227.43,227.42,92.88097674]
[1738161682719,0.03,227.45,227.44,20.39840839]
[1738161683016,0.063,227.51,227.5,43.776884]
[1738161683191,0.063,227.51,227.5,64.83519681]
[1738161683394,0.03,227.53,227.52,54.027864]
[1738161683621,0.884,227.63,227.55,74.027864]
[1738161683803,0.884,227.63,227.55,98.17507669]
[1738161684119,0.884,227.63,227.55,97.89176239]
[1738161684419,0.884,227.63,227.55,102.28636239]
[1738161684819,0.884,227.63,227.58,30.0]
[1738161685027,0.884,227.63,227.62,20.39840839]
[1738161685406,0.884,227.63,227.62,44.17529239]
[1738161685720,0.03,227.66,227.65,50.25098]
[1738161685907,0.03,227.66,227.65,94.83486955]
[1738161686104,82.5,227.83,227.72,23.776884]
[1738161686306,6.4757,227.88,227.78,20.39840839]
[1738161686523,1.7554,227.87,227.78,20.39840839]
[1738161686720,20.39840839,227.87,227.78,44.58371801]
[1738161687020,20.39840839,227.84,227.77,20.39840839]
[1738161687221,20.39840839,227.84,227.76,20.39840839]
[1738161687905,22.27989839,227.78,227.71,20.39840839]
[1738161688220,20.39840839,227.76,227.68,20.39840839]
[1738161688422,1.88149,227.78,227.66,20.39840839]
[1738161688423,20.52389839,227.74,227.66,20.39840839]
[1738161688603,1.7564,227.73,227.66,20.39840839]
[1738161688807,0.12549,227.72,227.66,20.39840839]
[1738161690228,1.7564,227.73,227.66,20.39840839]
[1738161690836,6.64366,227.72,227.66,20.39840839]
[1738161691014,0.12549,227.59,227.47,1.5117]
[1738161691331,20.0,227.49,227.43,50.39840839]
[1738161691542,20.39840839,227.5,227.41,20.39840839]
[1738161691735,20.39840839,227.48,227.41,20.39840839]
[1738161691896,20.39840839,227.48,227.39,20.39840839]
[1738161692101,0.12549,227.45,227.38,3.36]
[1738161692626,20.39840839,227.46,227.38,3.36]
[1738161692938,37.7146,227.73,227.43,20.39840839]
[1738161692939,20.39840839,227.5,227.43,20.39840839]
[1738161693137,20.39840839,227.52,227.45,20.39840839]
[1738161693436,0.12549,227.49,227.41,20.39840839]
[1738161693739,20.39840839,227.48,227.39,20.39840839]
[1738161693901,40.39840839,227.43,227.35,42.10210679]
[1738161694110,40.39840839,227.43,227.3,36.1114]
[1738161694111,20.39840839,227.39,227.31,20.39840839]
[1738161694502,20.39840839,227.39,227.3,4.4624]
[1738161694701,33.20678924,227.4,227.31,33.20678924]
[1738161694937,0.12549,227.39,227.31,33.20678924]
[1738161695108,33.20678924,227.38,227.31,33.20678924]
[1738161695531,0.12549,227.39,227.31,33.20678924]
[1738161695831,33.20678924,227.38,227.31,33.20678924]
[1738161696330,33.20678924,227.44,227.35,33.20678924]
[1738161696536,33.20678924,227.48,227.41,33.20678924]
[1738161696839,33.20678924,227.45,227.37,33.20678924]
[1738161697200,33.20678924,227.47,227.39,33.20678924]
[1738161697510,7.1417,227.57,227.41,33.20678924]
[1738161697511,33.20678924,227.49,227.41,33.20678924]
[1738161697840,33.20678924,227.53,227.45,33.20678924]
[1738161698133,0.12549,227.52,227.45,33.20678924]
[1738161698343,33.20678924,227.51,227.45,33.20678924]
[1738161698502,33.20678924,227.53,227.45,33.20678924]
[1738161698702,20.0,227.5,227.45,37.60318924]
[1738161699425,33.20678924,227.55,227.47,33.20678924]
[1738161700347,33.20678924,227.57,227.49,33.20678924]
[1738161700504,33.20678924,227.6,227.53,33.20678924]
[1738161700724,33.20678924,227.58,227.5,33.20678924]
[1738161701026,0.12549,227.62,227.5,33.20678924]
[1738161701027,33.20678924,227.56,227.5,33.20678924]
[1738161701567,33.20678924,227.64,227.55,23.776884]